bitfinex-derivatives/quotes_BNBF0:USTF0_20260221
["timestamp","ask_amount","ask_price","bid_price","bid_amount"]
[1771715532558,0.96645286,626.27,625.48,2.3913379]
[1771715532860,0.96645286,626.26,625.48,2.3913379]
[1771715533060,0.96645286,626.25,625.49,1.398]
[1771715533261,0.96645286,626.24,625.49,1.398]
[1771715533461,0.96645286,626.23,625.49,1.398]
[1771715533660,0.96645286,626.22,625.49,1.398]
[1771715533858,0.96645286,626.21,625.49,1.398]
[1771715534059,0.96645286,626.2,625.49,1.398]
[1771715534258,0.96645286,626.19,625.49,1.398]
[1771715534463,0.96645286,626.18,625.49,1.398]
[1771715534763,0.96645286,626.17,625.49,1.398]
[1771715535063,1.19188994,626.37,625.49,1.398]
[1771715535265,0.96669636,626.36,625.49,1.398]
[1771715535564,0.96669636,626.35,625.49,1.398]
[1771715535763,1.19188994,626.37,625.49,1.398]
[1771715535764,0.96669636,626.34,625.49,1.398]
[1771715535960,0.96669636,626.33,625.49,1.398]
[1771715536164,0.96669636,626.32,625.49,3.7893379]
[1771715536360,0.96669636,626.31,625.49,3.7893379]
[1771715536566,0.96669636,626.3,625.49,3.7893379]
[1771715536766,0.96669636,626.29,625.49,3.7893379]
[1771715536964,0.96669636,626.28,625.49,3.7893379]
[1771715537266,0.96669636,626.27,625.49,3.7893379]
[1771715537466,0.96669636,626.26,625.49,3.7893379]
[1771715537762,0.96669636,626.25,625.49,3.7893379]
[1771715537962,0.96669636,626.24,625.49,3.7893379]
[1771715538166,0.96669636,626.23,625.49,3.7893379]
[1771715538466,0.96669636,626.22,625.49,3.7893379]
[1771715538666,0.96669636,626.21,625.49,3.7893379]
[1771715538866,0.96669636,626.2,625.49,3.7893379]
[1771715539067,0.96669636,626.19,625.49,3.7893379]
[1771715539267,0.96669636,626.18,625.49,3.7893379]
[1771715539467,0.96669636,626.17,625.49,3.7893379]
[1771715539667,0.96669636,626.16,625.49,3.7893379]
[1771715539963,1.19188994,626.36,625.49,3.7893379]
[1771715544575,2.15893391,626.36,625.49,3.7893379]
[1771715544776,0.96704397,626.35,625.49,3.7893379]
[1771715545078,0.96704397,626.34,625.49,3.7893379]
[1771715545272,0.96704397,626.33,625.49,3.7893379]
[1771715545575,1.19188994,626.36,625.49,3.7893379]
[1771715545576,0.96704397,626.32,625.49,3.7893379]
[1771715545871,0.96704397,626.31,625.49,3.7893379]
[1771715546075,0.96704397,626.3,625.49,3.7893379]
[1771715546275,0.96704397,626.29,625.49,3.7893379]
[1771715546477,0.96704397,626.28,625.49,3.7893379]
[1771715546775,0.96704397,626.27,625.49,3.7893379]
[1771715546974,0.96704397,626.26,625.49,3.7893379]
[1771715547172,0.96704397,626.25,625.49,3.7893379]
[1771715547372,0.96704397,626.24,625.49,3.7893379]
[1771715547672,0.96704397,626.23,625.49,3.7893379]
[1771715547971,0.96704397,626.22,625.49,3.7893379]
[1771715548176,0.96704397,626.21,625.49,3.7893379]
[1771715548376,0.96704397,626.2,625.49,3.7893379]
[1771715548573,0.96704397,626.19,625.49,3.7893379]
[1771715548873,0.96704397,626.18,625.49,3.7893379]
[1771715549070,0.96704397,626.17,625.49,3.7893379]
[1771715549274,0.96704397,626.16,625.49,3.7893379]
[1771715549472,1.19188994,626.36,625.49,3.7893379]
[1771715550071,2.15796992,626.35,625.49,1.398]
[1771715550274,0.96607998,626.34,625.49,1.398]
[1771715550473,0.96607998,626.33,625.49,1.398]
[1771715550673,0.96607998,626.32,625.49,1.398]
[1771715550977,0.96607998,626.31,625.49,1.398]
[1771715551276,0.96607998,626.3,625.49,1.398]
[1771715551478,0.96607998,626.29,625.49,1.398]
[1771715551677,0.96607998,626.28,625.49,1.398]
[1771715551878,0.96607998,626.27,625.49,1.398]
[1771715552074,0.96607998,626.26,625.49,1.398]
[1771715552274,0.96607998,626.25,625.49,1.398]
[1771715552475,0.96607998,626.24,625.49,1.398]
[1771715552680,0.96607998,626.23,625.49,1.398]
[1771715552975,0.96607998,626.22,625.49,1.398]
[1771715553180,0.96607998,626.21,625.49,1.398]
[1771715553379,0.96607998,626.2,625.49,1.398]
[1771715553579,0.96607998,626.19,625.49,1.398]
[1771715553781,0.96607998,626.18,625.49,1.398]
[1771715553980,0.96607998,626.17,625.49,1.398]
[1771715554284,0.96607998,626.16,625.49,1.398]
[1771715554479,0.96607998,626.15,625.49,1.398]
[1771715554684,0.96607998,626.14,625.49,1.398]
[1771715554880,1.19188994,626.34,625.49,1.398]
[1771715557489,2.15800786,626.34,625.49,1.398]
[1771715557791,2.15800786,626.33,625.49,1.398]
[1771715557991,0.96611792,626.32,625.49,1.398]
[1771715558191,0.96611792,626.31,625.49,1.398]
[1771715558388,1.19188994,626.33,625.49,1.398]
[1771715558389,0.96611792,626.3,625.49,1.398]
[1771715558688,0.96611792,626.29,625.49,1.398]
[1771715558888,0.96611792,626.28,625.49,1.398]
[1771715559189,0.96611792,626.27,625.49,1.398]
[1771715559393,0.96611792,626.26,625.49,1.398]
[1771715559693,0.96611792,626.25,625.49,1.398]
[1771715559992,0.96611792,626.24,625.49,1.398]
[1771715560189,0.96611792,626.23,625.49,1.398]
[1771715560393,0.96611792,626.22,625.49,1.398]
[1771715560592,0.96611792,626.21,625.49,1.398]
[1771715560794,0.96611792,626.2,625.49,1.398]
[1771715560993,0.96611792,626.19,625.49,1.398]
[1771715561191,0.96611792,626.18,625.49,1.398]
[1771715561391,0.96611792,626.17,625.49,1.398]
[1771715561591,0.96611792,626.16,625.49,1.398]
[1771715561792,0.96611792,626.15,625.49,1.398]
[1771715562092,0.96611792,626.14,625.49,1.398]
[1771715562296,0.96611792,626.13,625.49,1.398]
[1771715562496,0.96611792,626.12,625.49,1.398]
[1771715562795,0.96611792,626.11,625.49,1.398]
[1771715562991,0.96611792,626.1,625.49,1.398]
[1771715563191,0.96611792,626.09,625.49,1.398]
[1771715563497,0.96611792,626.08,625.49,1.398]
[1771715563696,0.96611792,626.07,625.49,1.398]
[1771715563992,0.96611792,626.06,625.49,1.398]
[1771715564296,1.19188994,626.26,625.49,1.398]
[1771715565397,1.19188994,626.24,625.49,1.398]
[1771715567603,2.15808195,626.23,625.49,1.398]
[1771715567796,0.96619201,626.22,625.49,1.398]
[1771715568001,0.96619201,626.21,625.49,1.398]
[1771715568200,0.96619201,626.2,625.49,1.398]
[1771715568501,0.96619201,626.19,625.49,1.398]
[1771715568802,0.96619201,626.18,625.49,1.398]
[1771715569099,0.96619201,626.17,625.49,1.398]
[1771715569398,0.96619201,626.16,625.49,1.398]
[1771715569602,0.96619201,626.15,625.49,1.398]
[1771715569899,0.96619201,626.14,625.49,1.398]
[1771715570103,0.96619201,626.13,625.49,1.398]
[1771715570303,0.96619201,626.12,625.49,1.398]
[1771715570503,0.96619201,626.11,625.49,1.398]
[1771715570702,0.96619201,626.1,625.49,1.398]
[1771715570899,0.96619201,626.09,625.49,1.398]
[1771715571199,0.96619201,626.08,625.49,1.398]
[1771715571404,0.96619201,626.07,625.49,1.398]
[1771715571603,0.96619201,626.06,625.49,1.398]
[1771715571804,0.96619201,626.05,625.49,1.398]
[1771715572002,0.96619201,626.04,625.49,1.398]
[1771715572201,0.96619201,626.03,625.49,1.398]
[1771715572500,1.19188994,626.23,625.49,1.398]
[1771715573105,1.19188994,626.24,625.49,1.398]
[1771715573707,1.19188994,626.22,625.49,1.398]
[1771715574007,1.19188994,626.16,625.49,1.398]
[1771715574208,0.96585247,626.15,625.49,1.398]
[1771715574506,0.96585247,626.14,625.49,1.398]
[1771715574703,0.96585247,626.13,625.49,1.398]
[1771715574904,1.19188994,626.1,625.49,1.398]
[1771715575102,0.96585247,626.09,625.21,2.3913379]
[1771715575306,0.96585247,626.08,625.2,2.3913379]
[1771715575504,0.96585247,626.07,625.2,2.3913379]
[1771715575708,0.96585247,626.06,625.2,2.3913379]
[1771715576005,0.96585247,626.05,625.2,2.3913379]
[1771715576204,0.96585247,626.04,625.19,2.3913379]
[1771715576507,0.96585247,626.03,625.19,2.3913379]
[1771715576705,0.96585247,626.02,625.19,2.3913379]
[1771715577007,0.96585247,626.01,625.19,2.3913379]
[1771715577208,0.96585247,626.0,625.18,2.3913379]
[1771715577404,1.19188994,626.13,625.18,2.3913379]
[1771715577405,0.96585247,625.99,625.18,2.3913379]
[1771715577603,0.96585247,625.98,625.19,1.477]
[1771715577804,1.19188994,626.12,625.19,1.477]
[1771715577805,0.96585247,625.97,625.19,1.477]
[1771715578007,0.96585247,625.96,625.19,1.477]
[1771715578204,0.96585247,625.95,625.19,1.477]
[1771715578510,0.96585247,625.94,625.19,1.477]
[1771715578705,0.96585247,625.93,625.19,1.477]
[1771715578910,1.19188994,626.13,625.19,1.477]
[1771715579110,0.96965656,626.12,625.19,1.477]
[1771715579410,0.96965656,626.11,625.19,1.477]
[1771715579607,0.96965656,626.1,625.19,1.477]
[1771715579811,0.96965656,626.09,625.19,1.477]
[1771715580107,0.96965656,626.08,625.19,1.477]
[1771715580311,0.96965656,626.07,625.19,1.477]
[1771715580511,0.96965656,626.06,625.19,1.477]
[1771715580708,0.96965656,626.05,625.19,1.477]
[1771715581008,0.96965656,626.04,625.19,1.477]
[1771715581208,0.96965656,626.03,625.19,1.477]
[1771715581408,0.96965656,626.02,625.19,1.477]
[1771715581611,0.96965656,626.01,625.19,1.477]
[1771715581810,0.96965656,626.0,625.19,1.477]
[1771715582007,0.96965656,625.99,625.19,1.477]
[1771715582207,0.96965656,625.98,625.19,1.477]
[1771715582510,0.96965656,625.97,625.19,1.477]
[1771715582708,0.96965656,625.96,625.19,1.477]
[1771715582912,0.96965656,625.95,625.19,1.477]
[1771715583213,0.96965656,625.94,625.19,1.477]
[1771715583415,1.19188994,626.14,625.19,1.477]
[1771715583615,0.96892623,626.13,625.19,1.477]
[1771715583913,0.96892623,626.12,625.19,1.477]
[1771715584115,0.96892623,626.11,625.19,1.477]
[1771715584315,0.96892623,626.1,625.19,1.477]
[1771715584614,0.96892623,626.09,625.21,2.3913379]
[1771715584812,0.96892623,626.08,625.21,2.3913379]
[1771715585016,0.96892623,626.07,625.21,2.3913379]
[1771715585315,0.96892623,626.06,625.21,2.3913379]
[1771715585517,0.96892623,626.05,625.21,2.3913379]
[1771715585715,0.96892623,626.04,625.21,2.3913379]
[1771715585913,0.96892623,626.03,625.21,2.3913379]
[1771715586112,0.96892623,626.02,625.21,2.3913379]
[1771715586316,0.96892623,626.01,625.2,2.3913379]
[1771715586612,1.19188994,626.21,625.2,2.3913379]
[1771715586911,0.96889275,626.2,625.2,2.3913379]
[1771715587113,0.96889275,626.19,625.2,2.3913379]
[1771715587312,0.96889275,626.18,625.2,2.3913379]
[1771715587515,0.96889275,626.17,625.2,2.3913379]
[1771715587714,0.96889275,626.16,625.2,2.3913379]
[1771715587915,0.96889275,626.15,625.2,2.3913379]
[1771715588116,0.96889275,626.14,625.21,2.3913379]
[1771715588315,0.96889275,626.13,625.21,2.3913379]
[1771715588614,0.96889275,626.12,625.21,2.3913379]
[1771715588819,0.96889275,626.11,625.21,2.3913379]
[1771715589013,0.96889275,626.1,625.21,2.3913379]
[1771715589213,0.96889275,626.09,625.21,2.3913379]
[1771715589415,0.96889275,626.08,625.21,2.3913379]
[1771715589618,0.96889275,626.07,625.19,1.477]
[1771715589818,0.96889275,626.06,625.19,1.477]
[1771715590114,0.96889275,626.05,625.19,1.477]
[1771715590417,0.96889275,626.04,625.19,1.477]
[1771715590614,0.96889275,626.03,625.19,1.477]
[1771715590818,0.96889275,626.02,625.19,1.477]
[1771715591017,0.96889275,626.01,625.19,1.477]
[1771715591218,0.96889275,626.0,625.19,1.477]
[1771715591415,0.96889275,625.99,625.19,1.477]
[1771715591718,0.96889275,625.98,625.19,1.477]
[1771715592017,0.96889275,625.97,625.19,1.477]
[1771715592218,0.96889275,625.96,625.19,1.477]
[1771715592419,0.96889275,625.95,625.19,1.477]
[1771715592619,0.96889275,625.94,625.19,1.477]
[1771715592830,1.19188994,626.14,625.19,1.477]
[1771715593029,0.96890179,626.13,625.19,1.477]
[1771715593230,0.96890179,626.12,625.19,1.477]
[1771715593426,0.96890179,626.11,625.19,1.477]
[1771715593626,0.96890179,626.1,625.19,1.477]
[1771715593827,0.96890179,626.09,625.19,1.477]
[1771715594127,0.96890179,626.08,625.19,1.477]
[1771715594327,0.96890179,626.07,625.19,1.477]
[1771715594530,0.96890179,626.06,625.19,1.477]
[1771715594827,0.96890179,626.05,625.19,1.477]
[1771715595027,0.96890179,626.04,625.19,1.477]
[1771715595227,0.96890179,626.03,625.19,1.477]
[1771715595530,0.96890179,626.02,625.19,1.477]
[1771715595728,0.96890179,626.01,625.19,1.477]
[1771715595932,0.96890179,626.0,625.19,1.477]
[1771715596126,0.96890179,625.99,625.19,1.477]
[1771715596330,0.96890179,625.98,625.19,1.477]
[1771715596530,0.96890179,625.97,625.19,1.477]
[1771715596730,0.96890179,625.96,625.19,1.477]
[1771715597031,0.96890179,625.95,625.19,1.477]
[1771715597228,0.96890179,625.94,625.19,1.477]
[1771715597432,0.96890179,625.93,625.19,1.477]
[1771715597629,0.96890179,625.92,625.19,1.477]
[1771715597832,0.96890179,625.91,625.19,1.477]
[1771715598132,0.96890179,625.9,625.19,1.477]
[1771715598334,0.96890179,625.89,625.19,1.477]
[1771715598630,0.96890179,625.88,625.19,1.477]
[1771715598830,0.96890179,625.87,625.19,1.477]
[1771715599129,0.96890179,625.86,625.19,1.477]
[1771715599329,0.96890179,625.85,625.19,1.477]
[1771715599634,0.96890179,625.84,625.19,1.477]
[1771715599833,0.96890179,625.83,625.19,1.477]
[1771715600032,1.19188994,626.03,625.19,1.477]
[1771715600229,0.96858713,626.02,625.19,1.477]
[1771715600430,0.96858713,626.01,625.19,1.477]
[1771715600633,0.96858713,626.0,625.19,1.477]
[1771715600833,0.96858713,625.99,625.19,1.477]
[1771715601034,0.96858713,625.98,625.19,1.477]
[1771715601234,0.96858713,625.97,625.19,1.477]
[1771715601434,0.96858713,625.96,625.19,1.477]
[1771715601731,0.96858713,625.95,625.19,1.477]
[1771715601934,0.96858713,625.94,625.19,1.477]
[1771715602133,0.96858713,625.93,625.19,1.477]
[1771715602335,0.96858713,625.92,625.19,1.477]
[1771715602534,0.96858713,625.91,625.19,1.477]
[1771715602834,0.96858713,625.9,625.19,1.477]
[1771715603031,0.96858713,625.89,625.19,1.477]
[1771715603230,0.96858713,625.88,625.19,1.477]
[1771715603435,0.96858713,625.87,625.19,1.477]
[1771715603635,0.96858713,625.86,625.19,1.477]
[1771715603835,0.96858713,625.85,625.19,1.477]
[1771715604036,0.96858713,625.84,625.19,1.477]
[1771715604230,0.96858713,625.83,625.19,1.477]
[1771715604434,0.96858713,625.82,625.19,1.477]
[1771715604736,0.96858713,625.81,625.19,1.477]
[1771715605032,0.96858713,625.8,625.19,1.477]
[1771715605336,0.96858713,625.79,625.19,1.477]
[1771715605536,0.96858713,625.78,625.19,1.477]
[1771715605736,0.96858713,625.77,625.19,1.477]
[1771715605937,0.96858713,625.76,625.19,1.477]
[1771715606135,1.19188994,625.96,625.19,1.477]
[1771715606335,0.9683336,625.95,625.19,1.477]
[1771715606536,1.19188994,625.96,625.19,1.477]
[1771715606537,0.9683336,625.94,625.19,1.477]
[1771715606733,0.9683336,625.93,625.19,1.477]
[1771715606931,1.19188994,625.96,625.19,1.477]
[1771715606932,0.9683336,625.92,625.19,1.477]
[1771715607134,0.9683336,625.91,625.19,1.477]
[1771715607337,0.9683336,625.9,625.19,1.477]
[1771715607636,0.9683336,625.89,625.19,1.477]
[1771715607837,0.9683336,625.88,625.19,1.477]
[1771715608032,0.9683336,625.87,625.19,1.477]
[1771715608235,0.9683336,625.86,625.19,1.477]
[1771715608434,0.9683336,625.85,625.19,1.477]
[1771715608737,0.9683336,625.84,625.19,1.477]
[1771715608934,0.9683336,625.83,625.19,1.477]
[1771715609137,0.9683336,625.82,625.19,1.477]
[1771715609335,0.9683336,625.81,625.19,1.477]
[1771715609535,0.9683336,625.8,625.19,1.477]
[1771715609738,0.9683336,625.79,625.19,1.477]
[1771715609936,0.9683336,625.78,625.19,1.477]
[1771715610134,0.9683336,625.77,625.19,1.477]
[1771715610337,0.9683336,625.76,625.19,1.477]
[1771715610640,1.19188994,625.96,625.19,1.477]
[1771715610837,0.96904674,625.95,625.12,0.27806188]
[1771715611039,0.96904674,625.94,625.12,0.27806188]
[1771715611239,0.96904674,625.93,625.12,0.27806188]
[1771715611438,0.96904674,625.92,625.12,0.27806188]
[1771715611742,0.96904674,625.91,625.12,0.27806188]
[1771715611939,0.96904674,625.9,625.12,0.27806188]
[1771715612141,0.96904674,625.89,625.12,0.27806188]
[1771715612341,0.96904674,625.88,625.12,0.27806188]
[1771715612544,0.96904674,625.87,625.12,0.27806188]
[1771715612741,0.96904674,625.86,625.12,0.27806188]
[1771715612943,0.96904674,625.85,625.12,0.27806188]
[1771715613142,0.96904674,625.84,625.12,0.27806188]
[1771715613344,0.96904674,625.83,625.12,0.27806188]
[1771715613645,0.96904674,625.82,625.12,0.27806188]
[1771715613945,0.96904674,625.81,625.12,0.27806188]
[1771715614145,0.96904674,625.8,625.12,0.27806188]
[1771715614341,0.96904674,625.79,625.12,0.27806188]
[1771715614545,0.96904674,625.78,625.12,0.27806188]
[1771715614745,0.96904674,625.77,625.13,1.522]
[1771715615043,1.19188994,625.96,625.13,1.522]
[1771715615044,0.96904674,625.76,625.13,1.522]
[1771715615240,1.19188994,625.96,625.13,1.522]
[1771715615444,0.96929797,625.95,625.13,1.522]
[1771715615646,0.96929797,625.94,625.13,1.522]
[1771715615846,0.96929797,625.93,625.13,1.522]
[1771715616144,0.96929797,625.92,625.13,1.522]
[1771715616342,0.96929797,625.91,625.13,1.522]
[1771715616547,0.96929797,625.9,625.13,1.522]
[1771715616744,1.19188994,625.96,625.13,1.522]
[1771715616745,0.96929797,625.89,625.13,1.522]
[1771715616949,0.96929797,625.88,625.13,1.522]
[1771715617244,0.96929797,625.87,625.13,1.522]
[1771715617445,0.96929797,625.86,625.13,1.522]
[1771715617748,0.96929797,625.85,625.13,1.522]
[1771715617949,0.96929797,625.84,625.13,1.522]
[1771715618148,0.96929797,625.83,625.13,1.522]
[1771715618349,0.96929797,625.82,625.13,1.522]
[1771715618549,0.96929797,625.81,625.13,1.522]
[1771715618850,0.96929797,625.8,625.13,1.522]
[1771715619151,0.96929797,625.79,625.13,1.522]
[1771715619345,0.96929797,625.78,625.13,1.522]
[1771715619545,0.96929797,625.77,625.13,1.522]
[1771715619845,1.19188994,625.95,625.13,1.522]
[1771715619846,0.96929797,625.76,625.13,1.522]
[1771715620049,0.96929797,625.75,625.13,1.522]
[1771715620249,1.19188994,625.95,625.13,1.522]
[1771715620450,0.96976793,625.94,625.13,1.522]
[1771715620649,0.96976793,625.93,625.13,1.522]
[1771715620849,0.96976793,625.92,625.13,1.522]
[1771715621050,0.96976793,625.91,625.13,1.522]
[1771715621346,0.96976793,625.9,625.13,1.522]
[1771715621544,0.96976793,625.89,625.13,1.522]
[1771715621749,0.96976793,625.88,625.13,1.522]
[1771715622046,0.96976793,625.87,625.13,1.522]
[1771715622245,0.96976793,625.86,625.13,1.522]
[1771715622549,0.96976793,625.85,625.13,1.522]
[1771715622745,0.96976793,625.84,625.13,1.522]
[1771715623049,0.96976793,625.83,625.13,1.522]
[1771715623246,0.96976793,625.82,625.13,1.522]
[1771715623549,0.96976793,625.81,625.13,1.522]
[1771715623749,0.96976793,625.8,625.13,1.522]
[1771715623949,0.96976793,625.79,625.13,1.522]
[1771715624148,0.96976793,625.78,625.13,1.522]
[1771715624346,0.96976793,625.77,625.13,1.522]
[1771715624547,0.96976793,625.76,625.13,1.522]
[1771715624846,0.96976793,625.75,625.13,1.522]
[1771715625146,1.19188994,625.95,625.13,1.522]
[1771715625352,0.96976053,625.94,625.13,1.522]
[1771715625550,0.96976053,625.93,625.13,1.522]
[1771715625749,0.96976053,625.92,625.13,1.522]
[1771715625947,0.96976053,625.91,625.13,1.522]
[1771715626147,0.96976053,625.9,625.13,1.522]
[1771715626352,0.96976053,625.89,625.13,1.522]
[1771715626549,0.96976053,625.88,625.13,1.522]
[1771715626754,0.96976053,625.87,625.13,1.522]
[1771715626981,0.96976053,625.86,625.13,1.522]
[1771715627155,0.96976053,625.85,625.13,1.522]
[1771715627354,0.96976053,625.84,625.13,1.522]
[1771715627554,0.96976053,625.83,625.13,1.522]
[1771715627755,0.96976053,625.82,625.13,1.522]
[1771715628055,0.96976053,625.81,625.13,1.522]
[1771715628254,0.96976053,625.8,625.13,1.522]
[1771715628456,0.96976053,625.79,625.13,1.522]
[1771715628757,0.96976053,625.78,625.13,1.522]
[1771715628956,0.96976053,625.77,625.13,1.522]
[1771715629155,0.96976053,625.76,625.13,1.522]
[1771715629352,0.96976053,625.75,625.13,1.522]
[1771715629556,1.19188994,625.95,625.13,1.522]
[1771715629755,0.96989023,625.94,625.13,1.522]
[1771715629956,0.96989023,625.93,625.13,1.522]
[1771715630157,0.96989023,625.92,625.13,1.522]
[1771715630358,0.96989023,625.91,625.13,1.522]
[1771715630555,0.96989023,625.9,625.13,1.522]
[1771715630754,0.96989023,625.89,625.13,1.522]
[1771715630955,0.96989023,625.88,625.13,1.522]
[1771715631154,1.19188994,625.95,625.13,1.522]
[1771715631155,0.96989023,625.87,625.13,1.522]
[1771715631353,0.96989023,625.86,625.13,1.522]
[1771715631554,0.96989023,625.85,625.13,1.522]
[1771715631854,0.96989023,625.84,625.13,1.522]
[1771715632056,0.96989023,625.83,625.13,1.522]
[1771715632357,0.96989023,625.82,625.13,1.522]
[1771715632556,0.96989023,625.81,625.13,1.522]
[1771715632756,0.96989023,625.8,625.13,1.522]
[1771715632958,0.96989023,625.79,625.13,1.522]
[1771715633262,0.96989023,625.78,625.13,1.522]
[1771715633462,0.96989023,625.77,625.13,1.522]
[1771715633661,0.96989023,625.76,625.13,1.522]
[1771715633861,0.96989023,625.75,625.13,1.522]
[1771715634062,0.96989023,625.74,625.13,1.522]
[1771715634363,0.96989023,625.73,625.13,1.522]
[1771715634561,1.19188994,625.93,625.13,1.522]
[1771715634864,0.97101234,625.92,625.13,1.522]
[1771715635064,0.97101234,625.91,625.13,1.522]
[1771715635264,0.97101234,625.9,625.13,1.522]
[1771715635464,0.97101234,625.89,625.13,1.522]
[1771715635663,0.97101234,625.88,625.13,1.522]
[1771715635860,0.97101234,625.87,625.13,1.522]
[1771715636064,0.97101234,625.86,625.13,1.522]
[1771715636262,0.97101234,625.85,625.13,1.522]
[1771715636464,0.97101234,625.84,625.13,1.522]
[1771715636663,0.97101234,625.83,625.13,1.522]
[1771715636866,0.97101234,625.82,625.13,1.522]
[1771715637066,0.97101234,625.81,625.13,1.522]
[1771715637260,0.97101234,625.8,625.13,1.522]
[1771715637465,0.97101234,625.79,625.13,1.522]
[1771715637663,0.97101234,625.78,625.13,1.522]
[1771715637962,0.97101234,625.77,625.13,1.522]
[1771715638166,1.19188994,625.97,625.13,1.522]
[1771715638363,2.16415818,625.96,625.13,1.522]
[1771715638566,0.97226824,625.95,625.13,1.522]
[1771715638765,0.97226824,625.94,625.13,1.522]
[1771715638966,0.97226824,625.93,625.13,1.522]
[1771715639264,0.97226824,625.92,625.13,1.522]
[1771715639563,0.97226824,625.91,625.13,1.522]
[1771715639768,0.97226824,625.9,625.17,2.3913379]
[1771715639968,0.97226824,625.89,625.17,2.3913379]
[1771715640167,0.97226824,625.88,625.17,2.3913379]
[1771715640367,0.97226824,625.88,625.13,1.522]
[1771715640368,0.97226824,625.87,625.2,2.3913379]
[1771715640568,0.97226824,625.86,625.2,2.3913379]
[1771715640766,0.97226824,625.85,625.2,2.3913379]
[1771715640964,0.97226824,625.84,625.2,2.3913379]
[1771715641164,0.97226824,625.83,625.2,2.3913379]
[1771715641364,0.97226824,625.82,625.2,2.3913379]
[1771715641573,1.19188994,626.03,625.19,2.3913379]
[1771715643369,1.19188994,626.03,625.13,1.522]
[1771715643370,1.19188994,626.03,625.18,2.3913379]
[1771715643967,2.164669,626.03,625.18,2.3913379]
[1771715644169,0.97277906,626.02,625.18,2.3913379]
[1771715644471,0.97277906,626.01,625.18,2.3913379]
[1771715644770,0.97277906,626.0,625.18,2.3913379]
[1771715644969,1.19188994,626.04,625.18,2.3913379]
[1771715644970,0.97277906,625.99,625.18,2.3913379]
[1771715645168,0.97277906,625.98,625.18,2.3913379]
[1771715645372,0.97277906,625.97,625.18,2.3913379]
[1771715645570,0.97277906,625.96,625.18,2.3913379]
[1771715645770,0.97277906,625.95,625.18,2.3913379]
[1771715646074,0.97277906,625.94,625.18,2.3913379]
[1771715646275,0.97277906,625.93,625.18,2.3913379]
[1771715646471,0.97277906,625.92,625.17,2.3913379]
[1771715646670,0.97277906,625.91,625.17,2.3913379]
[1771715646873,0.97277906,625.9,625.17,2.3913379]
[1771715647071,0.97277906,625.89,625.17,2.3913379]
[1771715647371,0.97277906,625.88,625.17,2.3913379]
[1771715647574,0.97277906,625.87,625.17,2.3913379]
[1771715647771,0.97277906,625.86,625.17,2.3913379]
[1771715647975,0.97277906,625.85,625.17,2.3913379]
[1771715648176,1.19188994,626.05,625.17,2.3913379]
[1771715648374,0.97199293,626.04,625.17,2.3913379]
[1771715648574,0.97199293,626.03,625.17,2.3913379]
[1771715648775,0.97199293,626.02,625.17,2.3913379]
[1771715648973,0.97199293,626.01,625.17,2.3913379]
[1771715649176,0.97199293,626.0,625.17,2.3913379]
[1771715649382,0.97199293,625.99,625.17,2.3913379]
[1771715649681,0.97199293,625.98,625.17,2.3913379]
[1771715649882,0.97199293,625.97,625.17,2.3913379]
[1771715650181,0.97199293,625.96,625.17,2.3913379]
[1771715650378,0.97199293,625.95,625.16,2.3913379]
[1771715650681,0.97199293,625.94,625.16,2.3913379]
[1771715650881,1.19188994,626.05,625.13,1.522]
[1771715650882,0.97199293,625.93,625.15,2.3913379]
[1771715651078,0.97199293,625.92,625.15,2.3913379]
[1771715651277,0.97199293,625.91,625.15,2.3913379]
[1771715651481,0.97199293,625.9,625.15,2.3913379]
[1771715651780,0.97199293,625.89,625.15,2.3913379]
[1771715651977,0.97199293,625.88,625.15,2.3913379]
[1771715652281,0.97199293,625.87,625.13,1.522]
[1771715652481,0.97199293,625.86,625.13,1.522]
[1771715652678,1.19188994,626.01,625.12,2.66939978]
[1771715652679,0.97199293,625.85,625.12,2.66939978]
[1771715652978,0.97199293,625.84,625.12,0.27806188]
[1771715653282,0.97199293,625.83,625.12,0.27806188]